lending/lending_fUSD_20240809
["ID","MTS","AMOUNT","RATE_DAILY","PERIOD"]
[334490867,1723164649546,-588.03,0.00024499,5]
[334490868,1723164649556,-500.0,0.00024499,5]
[334490869,1723164649565,-588.03,0.00024499,5]
[334490870,1723164649577,-588.03,0.00024499,5]
[334490871,1723164649586,-500.0,0.00024499,5]
[334490872,1723164649596,-588.03,0.00024499,5]
[334490873,1723164649605,-500.0,0.00024499,5]
[334490874,1723164649614,-588.03,0.00024499,5]
[334490875,1723164649624,-524.83,0.00024499,5]
[334490876,1723164649633,-588.03,0.00024499,5]
[334490877,1723164649643,-588.03,0.00024499,5]
[334490878,1723164649652,-588.03,0.00024499,5]
[334490879,1723164649661,-588.03,0.00024499,5]
[334490880,1723164649671,-588.03,0.00024499,5]
[334490881,1723164649681,-588.03,0.00024499,5]
[334490882,1723164649691,-588.03,0.00024499,5]
[334490883,1723164649701,-588.03,0.00024499,5]
[334490884,1723164649710,-588.04,0.00024499,5]
[334490885,1723164649720,-500.0,0.00024499,5]
[334490886,1723164649730,-500.0,0.00024499,5]
[334490887,1723164649740,-500.0,0.00024499,5]
[334490888,1723164649749,-500.0,0.00024499,5]
[334490889,1723164649759,-500.0,0.00024499,5]
[334490890,1723164649768,-500.0,0.00024499,5]
[334490891,1723164649778,-500.0,0.00024499,5]
[334490892,1723164649787,-500.0,0.00024499,5]
[334490893,1723164649797,-2029.29,0.00024499,5]
[334490894,1723164649807,-500.0,0.00024499,5]
[334490895,1723164649817,-2029.29,0.00024499,5]
[334490896,1723164649827,-327.21,0.00024499,5]
[334490897,1723164649837,-2029.29,0.00024499,5]
[334490898,1723164649847,-2029.29,0.00024499,5]
[334490899,1723164649857,-2029.29,0.00024499,5]
[334490900,1723164649867,-2029.29,0.00024499,5]
[334490901,1723164649876,-2029.29,0.00024499,5]
[334490902,1723164649886,-500.0,0.00024499,5]
[334490903,1723164649895,-2029.29,0.00024499,5]
[334490904,1723164649905,-500.0,0.00024499,5]
[334490905,1723164649915,-2029.29,0.00024499,5]
[334490906,1723164649924,-2029.29,0.00024499,5]
[334490907,1723164649934,-450.1,0.00024499,5]
[334490908,1723164649944,-2029.29,0.00024499,5]
[334490909,1723164649954,-2029.29,0.00024499,5]
[334490910,1723164649967,-2029.29,0.00024499,5]
[334490911,1723164649982,-2029.29,0.00024499,5]
[334490912,1723164649992,-2029.30530458,0.00024499,5]
[334490913,1723164650001,-2336.04,0.00024499,5]
[334490914,1723164650011,-633.08,0.00024499,5]
[334490915,1723164650020,-2336.04,0.00024499,5]
[334490916,1723164650030,-2336.04,0.00024499,5]
[334490917,1723164650039,-2336.04,0.00024499,5]
[334490918,1723164650048,-2336.04,0.00024499,5]
[334490919,1723164650058,-2336.04,0.00024499,5]
[334490920,1723164650069,-2336.04,0.00024499,5]
[334490921,1723164650078,-2336.04,0.00024499,5]
[334490922,1723164650087,-2336.04,0.00024499,5]
[334490923,1723164650096,-2336.04,0.00024499,5]
[334490924,1723164650105,-2336.04,0.00024499,5]
[334490925,1723164650114,-2336.04,0.00024499,5]
[334490926,1723164650123,-2336.04,0.00024499,5]
[334490927,1723164650133,-2336.04,0.00024499,5]
[334490928,1723164650143,-2336.105,0.00024499,5]
[334490929,1723164650152,-500.0,0.00024499,5]
[334490930,1723164650162,-500.0,0.00024499,5]
[334490931,1723164650172,-632.7790129,0.00024499,5]
[334490932,1723164650183,-541.59,0.00024499,5]
[334490933,1723164650192,-541.59,0.00024499,5]
[334490934,1723164650202,-541.59,0.00024499,5]
[334490935,1723164650213,-541.59,0.00024499,5]
[334490936,1723164650223,-500.0,0.00024499,5]
[334490937,1723164650234,-541.59,0.00024499,5]
[334490938,1723164650244,-302.54,0.00024499,5]
[334490939,1723164650254,-541.59,0.00024499,5]
[334490940,1723164650263,-541.59,0.00024499,5]
[334490941,1723164650273,-500.0,0.00024499,5]
[334490942,1723164650282,-541.59,0.00024499,5]
[334490943,1723164650292,-500.0,0.00024499,5]
[334490944,1723164650302,-541.59,0.00024499,5]
[334490945,1723164650311,-500.0,0.00024499,5]
[334490946,1723164650321,-541.59,0.00024499,5]
[334490947,1723164650330,-500.0,0.00024499,5]
[334490948,1723164650339,-541.59,0.00024499,5]
[334490949,1723164650350,-500.0,0.00024499,5]
[334490950,1723164650360,-541.59,0.00024499,5]
[334490951,1723164650369,-608.45767174,0.00024499,5]
[334490952,1723164650378,-541.59,0.00024499,5]
[334490953,1723164650388,-541.59,0.00024499,5]
[334490954,1723164650397,-541.59,0.00024499,5]
[334490955,1723164650407,-541.59,0.00024499,5]
[334490956,1723164650416,-541.59,0.00024499,5]
[334490957,1723164650426,-541.69021315,0.00024499,5]
[334490958,1723164650435,-560.3,0.00024499,5]
[334490959,1723164650444,-560.3,0.00024499,5]
[334490960,1723164650453,-560.3,0.00024499,5]
[334490961,1723164650462,-560.3,0.00024499,5]
[334490962,1723164650474,-648.11,0.00024499,5]
[334490963,1723164650483,-648.11,0.00024499,5]
[334490964,1723164650493,-560.3,0.00024499,5]
[334490965,1723164650502,-648.11,0.00024499,5]
[334490966,1723164650515,-560.3,0.00024499,5]
[334490967,1723164650524,-648.11,0.00024499,5]
[334490968,1723164650533,-560.3,0.00024499,5]
[334490969,1723164650543,-648.11,0.00024499,5]
[334490970,1723164650553,-560.3,0.00024499,5]
[334490971,1723164650562,-648.11,0.00024499,5]
[334490972,1723164650572,-560.3,0.00024499,5]
[334490973,1723164650582,-648.11,0.00024499,5]
[334490974,1723164650592,-560.3,0.00024499,5]
[334490975,1723164650601,-648.11,0.00024499,5]
[334490976,1723164650610,-560.3,0.00024499,5]
[334490977,1723164650736,-648.11,0.00024499,5]
[334490978,1723164650746,-648.11,0.00024499,5]
[334490979,1723164650755,-648.11,0.00024499,5]
[334490980,1723164650764,-560.3,0.00024499,5]
[334490981,1723164650774,-648.11,0.00024499,5]
[334490982,1723164650783,-560.3,0.00024499,5]
[334490983,1723164650792,-648.11,0.00024499,5]
[334490984,1723164650801,-560.3,0.00024499,5]
[334490985,1723164650811,-648.11,0.00024499,5]
[334490986,1723164650820,-560.38,0.00024499,5]
[334490987,1723164650830,-648.26,0.00024499,5]
[334490988,1723164650839,-1433.71,0.00024499,5]
[334490989,1723164650849,-1433.71,0.00024499,5]
[334490990,1723164650858,-1433.71,0.00024499,5]
[334490991,1723164650868,-1433.71,0.00024499,5]
[334490992,1723164650877,-1433.71,0.00024499,5]
[334490993,1723164650887,-1433.71,0.00024499,5]
[334490994,1723164650896,-1433.71,0.00024499,5]
[334490995,1723164650906,-1752.96,0.00024499,5]
[334490996,1723164650916,-1433.71,0.00024499,5]
[334490997,1723164650926,-1752.96,0.00024499,5]
[334490998,1723164650936,-1433.71,0.00024499,5]
[334490999,1723164650945,-1433.71,0.00024499,5]
[334491000,1723164650955,-1752.96,0.00024499,5]
[334491001,1723164650965,-1433.71,0.00024499,5]
[334491002,1723164650974,-1752.96,0.00024499,5]
[334491003,1723164650983,-1752.96,0.00024499,5]
[334491004,1723164650992,-1433.71,0.00024499,5]
[334491005,1723164651002,-1752.96,0.00024499,5]
[334491006,1723164651011,-1433.71,0.00024499,5]
[334491007,1723164651021,-1433.71,0.00024499,5]
[334491008,1723164651031,-1433.71,0.00024499,5]
[334491009,1723164651042,-1752.96,0.00024499,5]
[334491010,1723164651052,-1752.96,0.00024499,5]
[334491011,1723164651063,-1752.96,0.00024499,5]
[334491012,1723164651073,-1752.96,0.00024499,5]
[334491013,1723164651083,-1752.96,0.00024499,5]
[334491014,1723164651093,-1752.96,0.00024499,5]
[334491015,1723164651103,-1752.96,0.00024499,5]
[334491016,1723164651113,-1752.96,0.00024499,5]
[334491017,1723164651123,-818.18,0.00024499,5]
[334491018,1723164651132,-1753.06024546,0.00024499,5]
[334491019,1723164651142,-818.18,0.00024499,5]
[334491020,1723164651152,-818.18,0.00024499,5]
[334491021,1723164651161,-818.18,0.00024499,5]
[334491022,1723164651171,-818.18,0.00024499,5]
[334491023,1723164651181,-818.18,0.00024499,5]
[334491024,1723164651192,-818.18,0.00024499,5]
[334491025,1723164651201,-695.1,0.00024499,5]
[334491026,1723164651211,-695.1,0.00024499,5]
[334491027,1723164651222,-695.1,0.00024499,5]
[334491028,1723164651231,-695.1,0.00024499,5]
[334491029,1723164651241,-695.1,0.00024499,5]
[334491030,1723164651251,-695.1,0.00024499,5]
[334491031,1723164651260,-695.1,0.00024499,5]
[334491032,1723164651270,-695.1,0.00024499,5]
[334491033,1723164651280,-695.1,0.00024499,5]
[334491034,1723164651289,-695.1,0.00024499,5]
[334491035,1723164651297,-695.1,0.00024499,5]
[334491036,1723164651307,-695.1,0.00024499,5]
[334491037,1723164651316,-695.1,0.00024499,5]
[334491038,1723164651326,-695.1,0.00024499,5]
[334491039,1723164651336,-695.26314389,0.00024499,5]
[334491040,1723164651345,-3801.9,0.00024499,5]
[334491041,1723164651355,-3801.9,0.00024499,5]
[334491042,1723164651365,-3801.9,0.00024499,5]
[334491043,1723164651374,-3801.9,0.00024499,5]
[334491044,1723164651383,-3801.9,0.00024499,5]
[334491045,1723164651393,-3801.9,0.00024499,5]
[334491046,1723164651402,-3801.9,0.00024499,5]
[334491047,1723164651411,-3801.9,0.00024499,5]
[334491048,1723164651420,-3801.9,0.00024499,5]
[334491049,1723164651430,-3801.9,0.00024499,5]
[334491050,1723164651439,-3801.9,0.00024499,5]
[334491051,1723164651449,-3801.9,0.00024499,5]
[334491052,1723164651458,-3801.9,0.00024499,5]
[334491053,1723164651469,-3801.9,0.00024499,5]
[334491054,1723164651478,-3802.0622545,0.00024499,5]
[334491055,1723164651488,-2147.63,0.00024499,5]
[334491056,1723164651498,-2147.63,0.00024499,5]
[334491057,1723164651511,-2147.63,0.00024499,5]
[334491058,1723164651520,-2147.63,0.00024499,5]
[334491059,1723164651529,-2147.63,0.00024499,5]
[334491060,1723164651539,-2147.63,0.00024499,5]
[334491061,1723164651548,-2147.63,0.00024499,5]
[334491062,1723164651558,-2147.63,0.00024499,5]
[334491063,1723164651567,-2147.63,0.00024499,5]
[334491064,1723164651579,-2147.63,0.00024499,5]
[334491065,1723164651589,-2147.63,0.00024499,5]
[334491066,1723164651598,-2147.63,0.00024499,5]
[334491067,1723164651607,-1376.03,0.00024499,5]
[334491068,1723164651616,-1376.03,0.00024499,5]
[334491069,1723164651625,-2147.63,0.00024499,5]
[334491070,1723164651634,-1376.03,0.00024499,5]
[334491071,1723164651643,-2147.63,0.00024499,5]
[334491072,1723164651653,-2147.82,0.00024499,5]
[334491073,1723164651662,-1376.03,0.00024499,5]
[334491074,1723164651672,-1376.03,0.00024499,5]
[334491075,1723164651681,-1376.03,0.00024499,5]
[334491076,1723164651690,-1376.03,0.00024499,5]
[334491077,1723164651699,-1376.03,0.00024499,5]
[334491078,1723164651709,-1376.03,0.00024499,5]
[334491079,1723164651718,-1376.03,0.00024499,5]
[334491080,1723164651728,-1376.03,0.00024499,5]
[334491081,1723164651737,-1376.03,0.00024499,5]
[334491082,1723164651746,-1376.03,0.00024499,5]
[334491083,1723164651756,-1376.03,0.00024499,5]
[334491084,1723164651765,-1376.11,0.00024499,5]
[334491085,1723164651774,-2114.65,0.00024499,5]
[334491086,1723164651783,-2114.65,0.00024499,5]
[334491087,1723164651792,-2114.65,0.00024499,5]
[334491088,1723164651802,-2114.65,0.00024499,5]
[334491089,1723164651811,-2114.65,0.00024499,5]
[334491090,1723164651820,-2114.65,0.00024499,5]
[334491091,1723164651829,-2114.65,0.00024499,5]
[334491092,1723164651839,-2114.65,0.00024499,5]
[334491093,1723164651848,-2114.65,0.00024499,5]
[334491094,1723164651857,-2114.65,0.00024499,5]
[334491095,1723164651867,-2114.65,0.00024499,5]
[334491096,1723164651877,-2114.65,0.00024499,5]
[334491097,1723164651886,-2114.65,0.00024499,5]
[334491098,1723164651896,-2114.65,0.00024499,5]
[334491099,1723164651906,-2114.87,0.00024499,5]
[334491100,1723164651916,-2394.95,0.00024499,5]
[334491101,1723164651925,-2394.95,0.00024499,5]
[334491102,1723164651935,-2394.95,0.00024499,5]
[334491103,1723164651945,-2394.95,0.00024499,5]
[334491104,1723164651954,-2394.95,0.00024499,5]
[334491105,1723164651964,-2394.95,0.00024499,5]
[334491106,1723164651974,-2394.95,0.00024499,5]
[334491107,1723164651984,-2394.95,0.00024499,5]
[334491108,1723164651993,-2394.95,0.00024499,5]
[334491109,1723164652003,-2394.95,0.00024499,5]
[334491110,1723164652013,-2394.95,0.00024499,5]
[334491111,1723164652022,-2394.95,0.00024499,5]
[334491112,1723164652031,-2394.95,0.00024499,5]
[334491113,1723164652041,-2394.95,0.00024499,5]
[334491114,1723164652051,-2395.18352275,0.00024499,5]
[334491115,1723164652060,-974.96,0.00024499,5]
[334491116,1723164652071,-974.96,0.00024499,5]
[334491117,1723164652081,-974.96,0.00024499,5]
[334491118,1723164652091,-974.96,0.00024499,5]
[334491119,1723164652102,-974.96,0.00024499,5]
[334491120,1723164652111,-2279.6,0.00024499,5]
[334491121,1723164652121,-974.96,0.00024499,5]
[334491122,1723164652131,-2279.6,0.00024499,5]
[334491123,1723164652141,-974.96,0.00024499,5]
[334491124,1723164652150,-2279.6,0.00024499,5]
[334491125,1723164652160,-2279.6,0.00024499,5]
[334491126,1723164652170,-974.96,0.00024499,5]
[334491127,1723164652180,-2279.6,0.00024499,5]
[334491128,1723164652189,-974.96,0.00024499,5]
[334491129,1723164652198,-1569.31755631,0.00024499,5]
[334491130,1723164652463,-1454.8,0.00022,2]
[334491131,1723164652477,-313.169,0.00022,2]
[334491132,1723164652489,-276.345,0.00022,2]
[334491133,1723164652507,-5859.83324,0.00022,2]
[334491134,1723164652523,-834.78658983,0.00022,2]
[334491135,1723164652532,-151.0,0.00024488,7]
[334491136,1723164652543,-710.28244369,0.00024499,5]
[334491137,1723164652552,-974.96,0.00024499,5]
[334491138,1723164652562,-2279.6,0.00024499,5]
[334491139,1723164652572,-974.96,0.00024499,5]
[334491140,1723164652584,-2279.6,0.00024499,5]
[334491141,1723164652594,-2279.6,0.00024499,5]
[334491142,1723164652604,-974.96,0.00024499,5]
[334491143,1723164652613,-2279.6,0.00024499,5]
[334491144,1723164652623,-974.96,0.00024499,5]
[334491145,1723164652632,-1559.69096648,0.00024499,5]
[334491146,1723164652644,-719.90903352,0.00024499,5]
[334491147,1723164652654,-92.3076047,0.00024499,5]
[334491148,1723164842381,-159.817688,0.00014825,2]
[334491149,1723164842405,-140.182312,0.00014999,2]
[334491150,1723164843482,-159.817688,0.00014999,2]
[334491151,1723164846754,-259.272004,0.00014899,2]
[334491152,1723164852637,-259.272004,0.000149,2]
[334491153,1723164856754,-259.272004,0.000149,2]
[334491154,1723164862705,-155.0,0.00014899,2]
[334491155,1723164871103,-3069.9855493,0.00014899,2]
[334491156,1723164878175,-537.40367405,0.00014899,2]
[334491157,1723164888066,-7554.96562538,0.00014899,2]
[334491159,1723164951622,-155.0,0.00014899,2]
[334491160,1723164969331,-537.40367405,0.00014899,2]
[334491161,1723164970627,-987.94639809,0.00014899,2]
[334491168,1723165051276,-155.0,0.00014899,2]
[334491169,1723165065055,-155.0,0.00014899,2]
[334491170,1723165069312,-537.40367405,0.00014899,2]
[334491171,1723165083225,-300.0,0.00014999,2]
[334491172,1723165141942,-300.0,0.00014999,2]
[334491173,1723165154260,-537.40367405,0.00014999,2]
[334491174,1723165202028,-300.0,0.00014999,2]
[334491175,1723165248028,-3069.47280244,0.00014999,2]
[334491176,1723165248579,-368.8784239,0.00014999,2]
[334491177,1723165322272,-300.0,0.00014999,2]
[334491178,1723165349947,-1343.33907261,0.00014999,2]
[334491181,1723165430023,-1401.67945,0.00014999,2]
[334491184,1723165487726,2398.84,0.00011,2]
[334491185,1723165500936,-164.64,0.00013973,2]
[334491186,1723165500958,-4191.4011,0.00015,7]
[334491190,1723165606560,1100.0,0.00025,60]
[334491235,1723165832701,-8940.96891392,0.00015,7]
[334491237,1723165832710,-340.85993505,0.00015,4]
[334491239,1723165832720,-22088.29041172,0.00015,2]
[334491241,1723165832729,-280.37204672,0.00016948,2]
[334491244,1723165832739,-155.11326996,0.00016953,2]
[334491246,1723165832749,-36101.73328395,0.00016999,2]
[334491248,1723165832759,-150.0,0.00017258,2]
[334491249,1723165832769,-779.19368305,0.00017739,2]
[334491251,1723165832779,-261.94911307,0.00017739,2]
[334491253,1723165832788,-46122.90723845,0.0001818,2]
[334491256,1723165832800,-621.80180698,0.0001818,2]
[334491258,1723165832812,-472.04,0.0001818,2]
[334491260,1723165832827,-493.5770007,0.0001818,2]
[334491263,1723165832838,-264.82796935,0.0001818,2]
[334491265,1723165832849,-811.05669613,0.0001818,2]
[334491268,1723165832869,-12956.23460994,0.0001818,2]
[334491269,1723165832887,-544.57707993,0.0001818,2]
[334491270,1723165832898,-418.54007673,0.0001818,2]
[334491271,1723165832909,-837.82808505,0.0001818,2]
[334491272,1723165832921,-901.1771706,0.0001818,2]
[334491303,1723165838391,-3396.04284698,0.0001818,2]
[334491304,1723165838403,-559.29807725,0.0001818,2]
[334491305,1723165838412,-155.0,0.00019451,2]
[334491306,1723165838422,-499.99,0.00019452,2]
[334491307,1723165838432,-1633.84531845,0.00019725,2]
[334491308,1723165838441,-385.66101716,0.00020191,2]
[334491309,1723165838453,-179.73,0.00020612,2]
[334491310,1723165838462,-195.09,0.00021713,2]
[334491311,1723165838472,-1500.0,0.0002173,5]
[334491312,1723165838481,-250.0,0.00021801,2]
[334491313,1723165838490,-526.34,0.00022126,2]
[334491314,1723165838499,-640.0,0.00022183,2]
[334491315,1723165838509,-170.25,0.00022406,2]
[334491316,1723165838519,-7101.979737,0.00022497,2]
[334491317,1723165838538,-303.16003,0.00022497,2]
[334491318,1723165838550,-315.0,0.00022497,2]
[334491319,1723165838563,-1555.400233,0.00022497,2]
[334491320,1723165838572,-250.0,0.00022566,2]
[334491321,1723165838582,-360.0,0.00022582,2]
[334491322,1723165838592,-1418.72,0.00022583,2]
[334491323,1723165838602,-161.64,0.00022609,2]
[334491324,1723165838611,-161.64,0.00022625,2]
[334491325,1723165838621,-161.64,0.00022642,2]
[334491326,1723165838631,-161.64,0.00022658,2]
[334491327,1723165838640,-161.64,0.00022674,2]
[334491328,1723165838649,-161.64,0.0002269,2]
[334491329,1723165838658,-161.64,0.00022706,2]
[334491330,1723165838668,-161.64,0.00022722,2]
[334491331,1723165838677,-347.47,0.0002274,2]
[334491332,1723165838687,-179.73,0.00022875,2]
[334491333,1723165838701,-169.87,0.00022994,2]
[334491334,1723165838710,-530.74,0.00023671,2]
[334491335,1723165838719,-302.12,0.00023671,2]
[334491336,1723165838729,-372.86,0.00023671,2]
[334491337,1723165838738,-356.25,0.00023671,2]
[334491338,1723165838748,-150.0,0.00023671,2]
[334491339,1723165838757,-300.0,0.00023671,2]
[334491340,1723165838766,-530.74,0.00023671,2]
[334491341,1723165838775,-150.0,0.00023671,2]
[334491342,1723165838785,-225.33,0.00023671,2]
[334491343,1723165838794,-150.0,0.00023671,2]
[334491344,1723165838803,-500.0,0.000237,8]
[334491345,1723165838813,-1000.0,0.000238,8]
[334491347,1723165838823,-180.0,0.00023856,2]
[334491349,1723165838832,-1500.0,0.000239,8]
[334491351,1723165838843,-974.36455588,0.000242,8]
[334491353,1723165838855,-1025.63544412,0.000242,8]
[334491355,1723165838865,-1724.28125,0.0002425,2]
[334491357,1723165838877,-2500.0,0.000243,8]
[334491359,1723165838887,-3014.9869,0.00024387,2]
[334491360,1723165838897,-5634.4267,0.00024388,2]
[334491362,1723165838906,-534.2648,0.00024389,2]
[334491364,1723165838917,-6942.11155343,0.00024391,2]
[334491367,1723165838929,-3682.38674657,0.00024391,2]
[334491368,1723165838940,-153.68776239,0.00024398,2]
[334491370,1723165838954,-1000.0,0.00024398,2]
[334491372,1723165838969,-3103.9289,0.00024399,2]
[334491375,1723165838979,-103.336591,0.00024399,2]
[334491378,1723165838991,-2002.03895892,0.00024399,2]
[334491381,1723165839004,-1437.06765008,0.00024399,2]
[334491384,1723165839013,-500.0,0.000244,8]
[334491387,1723165839023,-221.11139028,0.000244,4]
[334491390,1723165839033,-1000.0,0.000244,2]
[334491394,1723165839043,-405.48403837,0.000244,2]
[334491397,1723165839053,-1312.60328246,0.000244,2]
[334491400,1723165839063,-212.814,0.00024466,10]
[334491403,1723165839072,-154.58,0.00024486,2]
[334491406,1723165839081,-2723.8992387,0.00024487,4]
[334491409,1723165839094,-30673.9378012,0.00024487,4]
[334491411,1723165839103,-500.0,0.00024487,5]
[334491413,1723165839113,-500.0,0.00024487,5]
[334491415,1723165839122,-2566.43,0.00024487,5]
[334491417,1723165839132,-62.55387863,0.00024487,5]
[334491419,1723165839144,-2338.03209657,0.00024487,5]
[334491422,1723165839157,-183.3640248,0.00024487,5]
[334491424,1723165839166,-440.07797381,0.00024487,5]
[334491427,1723165839190,-2741.72202619,0.00024487,5]
[334491429,1723165839202,-980.95,0.00024487,5]
[334491431,1723165839212,-801.73,0.00024487,5]
[334491433,1723165839221,-3285.58,0.00024487,5]
[334491435,1723165839231,-3579.82,0.00024487,5]
[334491436,1723165839241,-1680.61,0.00024487,5]
[334491437,1723165839250,-1073.84,0.00024487,5]
[334491438,1723165839260,-9683.49,0.00024487,5]
[334491439,1723165839270,-573.34,0.00024487,5]
[334491440,1723165839280,-3463.39,0.00024487,5]
[334491441,1723165839290,-500.0,0.00024487,5]
[334491442,1723165839300,-500.0,0.00024487,5]
[334491443,1723165839309,-500.0,0.00024487,5]
[334491444,1723165839319,-500.0,0.00024487,5]
[334491445,1723165839329,-500.0,0.00024487,5]
[334491448,1723165839489,-500.0,0.00024487,5]
[334491449,1723165839499,-506.34,0.00024487,5]
[334491452,1723165839508,-500.86990538,0.00024487,5]
[334491454,1723165839517,-500.17905041,0.00024487,2]
[334491455,1723165839527,-500.0,0.00024487,5]
[334491457,1723165839536,-648.52,0.00024487,5]
[334491459,1723165839545,-756.48,0.00024487,5]
[334491461,1723165839555,-1651.71,0.00024487,5]
[334491463,1723165839564,-723.37,0.00024487,5]
[334491465,1723165839573,-500.0,0.00024488,5]
[334491467,1723165839582,-500.0,0.00024488,5]
[334491469,1723165839591,-500.0,0.00024488,5]
[334491471,1723165839600,-64175.39075559,0.00024488,4]
[334491534,1723165842680,-1504.19703584,0.000244,2]
[334491535,1723165842690,-500.0,0.00024487,5]
[334491536,1723165842703,-3730.46532221,0.00024488,4]
[334491540,1723165842953,-500.0,0.00024488,4]
[334491546,1723165843206,-0.02028993,0.00024488,4]
[334491548,1723165843217,-7971.90000001,0.00024488,4]
[334491552,1723165843230,-4564.99427688,0.00024488,4]
[334491556,1723165843241,-419.77238971,0.00024488,4]
[334491560,1723165843253,-1656.58520388,0.00024488,4]
[334491562,1723165843264,-9181.60895399,0.00024488,4]
[334491564,1723165843275,-10231.31137706,0.00024488,4]
[334491566,1723165843286,-340.15000015,0.00024488,4]
[334491568,1723165843297,-721.56421356,0.00024488,4]
[334491571,1723165843308,-648.22125179,0.00024488,4]
[334491573,1723165843319,-1424.0,0.00024488,4]
[334491575,1723165843330,-276.91061512,0.00024488,4]
[334491578,1723165843345,-317.32867453,0.00024488,4]
[334491580,1723165843355,-1216.15843688,0.00024488,4]
[334491582,1723165843366,-60898.0,0.00024488,4]
[334491584,1723165843377,-1819.20996264,0.00024488,4]
[334491586,1723165843388,-735.91480174,0.00024488,4]
[334491589,1723165843403,-1103.05543116,0.00024488,4]
[334491592,1723165843422,-1220.0,0.00024488,4]
[334491600,1723165843648,-16101.84793617,0.00024488,4]
[334491601,1723165843658,-477.92471254,0.00024489,5]
[334491602,1723165843668,-500.0,0.00024489,5]
[334491603,1723165843677,-151.0,0.00024489,7]
[334491604,1723165843687,-500.0,0.00024489,5]
[334491606,1723165843698,-151.0,0.00024489,7]
[334491608,1723165843707,-151.0,0.00024489,7]
[334491610,1723165843717,-151.0,0.00024489,7]
[334491612,1723165843726,-151.0,0.0002449,7]
[334491614,1723165843736,-151.0,0.00024496,7]
[334491616,1723165843745,-2013.52806678,0.00024496,2]
[334491618,1723165843754,-2566.43,0.00024496,5]
[334491620,1723165843763,-2583.95,0.00024496,5]
[334491622,1723165843772,-3181.8,0.00024496,5]
[334491624,1723165843782,-980.95,0.00024496,5]
[334491626,1723165843791,-801.73,0.00024496,5]
[334491628,1723165843801,-3285.58,0.00024496,5]
[334491630,1723165843810,-3579.82,0.00024496,5]
[334491633,1723165843829,-1680.61,0.00024496,5]
[334491635,1723165843839,-1073.84,0.00024496,5]
[334491637,1723165843848,-9683.49,0.00024496,5]
[334491639,1723165843858,-573.34,0.00024496,5]
[334491641,1723165843868,-3463.39,0.00024496,5]
[334491643,1723165843879,-500.0,0.00024496,5]
[334491645,1723165843891,-500.0,0.00024496,5]
[334491647,1723165843900,-500.0,0.00024496,5]
[334491649,1723165843911,-500.0,0.00024496,5]
[334491651,1723165843920,-500.0,0.00024496,5]
[334491653,1723165843930,-500.0,0.00024496,5]
[334491655,1723165843939,-506.34,0.00024496,5]
[334491657,1723165843953,-500.0,0.00024496,5]
[334491659,1723165843962,-648.52,0.00024496,5]
[334491661,1723165843972,-756.48,0.00024496,5]
[334491663,1723165843981,-1651.71,0.00024496,5]
[334491665,1723165843992,-723.37,0.00024496,5]
[334491667,1723165844001,-500.0,0.00024496,5]
[334491669,1723165844012,-500.0,0.00024497,5]
[334491671,1723165844022,-500.0,0.00024497,5]
[334491673,1723165844032,-500.0,0.00024497,5]
[334491675,1723165844041,-500.0,0.00024497,5]
[334491677,1723165844051,-500.0,0.00024497,5]
[334491679,1723165844061,-533.91,0.00024497,5]
[334491681,1723165844070,-542.36677321,0.00024497,5]